[Event "Reykjavik Open 2025"]
[Site "Reykjavik"]
[Date "2025.04.11"]
[Round "4.29"]
[White "Pipiras, Filipa Fortuna"]
[Black "Kjartansson, Gudmundur"]
[Result "0-1"]
[Annotator "ChessBase"]
[ECO "E29"]
[WhiteElo "2195"]
[BlackElo "2450"]
[PlyCount "174"]
[EventDate "2025.04.09"]
[EventType "swiss"]
[EventCountry "ISL"]
[SourceTitle "playchess.com"]
[Source "ChessBase"]
[SourceQuality "1"]
[TimeControl "40/5400+30:1800+30"]

1. d4 {[%emt 0:00:03]} Nf6 {[%emt 0:00:07]} 2. c4 {[%emt 0:00:06]} e6 {[%emt 0:00:03]} 3. Nc3 {[%emt 0:00:21]} Bb4 {[%emt 0:00:10]} 4. e3 {[%emt 0:00:22]} O-O {[%emt 0:00:13]} 5. a3 {[%emt 0:00:37]} Bxc3+ {[%emt 0:00:38]} 6. bxc3 {[%emt 0:00:08]} c5 {[%emt 0:00:51]} 7. Bd3 {[%emt 0:00:14]} Nc6 {[%emt 0:02:43]} 8. Ne2 {[%emt 0:00:28]} b6 {[%emt 0:00:35]} 9. e4 {[%emt 0:00:27]} Ne8 {[%emt 0:06:02]} 10. O-O {[%emt 0:00:21]} Ba6 {[%emt 0:01:13]} 11. Qc2 {[%emt 0:01:45]} Na5 {[%emt 0:07:02]} 12. e5 {[%emt 0:00:18]} h6 {[%emt 0:00:32]} 13. f4 {[%emt 0:02:59]} d6 {[%emt 0:07:09]} 14. f5 {[%emt 0:07:26]} exf5 {[%emt 0:00:26]} 15. Ng3 {[%emt 0:01:18]} dxe5 {[%emt 0:08:22]} 16. dxe5 {[%emt 0:10:18]} Bxc4 {[%emt 0:02:01]} 17. Bxc4 {[%emt 0:00:36]} Nxc4 {[%emt 0:00:03]} 18. Qxf5 {[%emt 0:04:40]} Qd5 {[%emt 0:03:13]} 19. Bf4 {[%emt 0:00:43]} Qe6 {[%emt 0:13:51]} 20. Qh5 {[%emt 0:07:44]} f5 {[%emt 0:29:46]} 21. Rae1 {[%emt 0:09:10]} Rd8 {[%emt 0:00:00]} 22. Bc1 {[%emt 0:14:42]} Rd5 {[%emt 0:00:00]} 23. Nxf5 {[%emt 0:01:18]} Rxe5 {[%emt 0:00:00]} 24. Rxe5 {[%emt 0:00:55]} Nxe5 {[%emt 0:00:00]} 25. Bxh6 {[%emt 0:01:18]} g6 {[%emt 0:01:02]} 26. Ne7+ {[%emt 0:01:05]} Kh7 {[%emt 0:00:15]} 27. Qh4 {[%emt 0:01:22]} Rxf1+ {[%emt 0:00:25]} 28. Kxf1 {[%emt 0:00:05]} Qf6+ {[%emt 0:13:10]} 29. Qxf6 {[%emt 0:00:07]} Nxf6 {[%emt 0:00:03]} 30. Bf4 {[%emt 0:06:53]} Nc4 {[%emt 0:00:34]} 31. Ke2 {[%emt 0:18:34]} Nxa3 {[%emt 0:01:17]} 32. Kd3 {[%emt 0:00:26]} b5 {[%emt 0:01:01]} 33. Bd6 {[%emt 0:03:39]} c4+ {[%emt 0:00:54]} 34. Kd4 {[%emt 0:00:23]} Nc2+ {[%emt 0:00:08]} 35. Ke5 {[%emt 0:00:26]} Ng4+ {[%emt 0:00:58]} 36. Kd5 {[%emt 0:03:12]} a5 {[%emt 0:02:11]} 37. Kc5 {[%emt 0:01:37]} a4 {[%emt 0:00:46]} 38. Kxb5 {[%emt 0:00:14]} a3 {[%emt 0:00:09]} 39. Bxa3 {[%emt 0:00:09]} Nxa3+ {[%emt 0:00:01]} 40. Kb4 {[%emt 0:00:11]} Nc2+ {[%emt 0:01:00]} 41. Kxc4 {[%emt 0:30:05]} Nce3+ {[%emt 0:08:43]} 42. Kd4 {[%emt 0:00:00]} Nxg2 {[%emt 0:00:09]} 43. c4 {[%emt 0:00:00]} Kg7 {[%emt 0:06:04]} 44. c5 {[%emt 0:00:00]} Nf4 {[%emt 0:00:52]} 45. Nxg6 {[%emt 0:00:00]} Nxg6 {[%emt 0:02:32]} 46. Kd5 {[%emt 0:00:00]} Kf7 {[%emt 0:00:45]} 47. c6 {[%emt 0:00:00]} Ke7 {[%emt 0:00:31]} 48. h4 {[%emt 0:00:00]} Nf4+ {[%emt 0:08:35]} 49. Kc5 {[%emt 0:00:00]} Ne6+ {[%emt 0:01:04]} 50. Kb6 {[%emt 0:00:00]} Kd6 {[%emt 0:00:07]} 51. h5 {[%emt 0:00:14]} Nh6 {[%emt 0:00:03]} 52. Kb5 {[%emt 0:00:23]} Nd4+ {[%emt 0:00:05]} 53. Kc4 {[%emt 0:00:22]} Nxc6 {[%emt 0:00:02]} 54. Kd3 {[%emt 0:00:13]} Kd5 {[%emt 0:00:24]} 55. Ke3 {[%emt 0:00:21]} Nd4 {[%emt 0:00:42]} 56. Kd3 {[%emt 0:00:13]} Ne6 {[%emt 0:01:08]} 57. Ke3 {[%emt 0:00:23]} Nc5 {[%emt 0:00:44]} 58. Kf4 {[%emt 0:00:31]} Ne4 {[%emt 0:00:25]} 59. Ke3 {[%emt 0:00:11]} Ke5 {[%emt 0:00:16]} 60. Kd3 {[%emt 0:00:17]} Nd6 {[%emt 0:01:00]} 61. Ke3 {[%emt 0:00:08]} Nc4+ {[%emt 0:00:05]} 62. Kd3 {[%emt 0:00:38]} Kd5 {[%emt 0:00:01]} 63. Kc3 {[%emt 0:00:23]} Ne5 {[%emt 0:00:06]} 64. Kd2 {[%emt 0:00:16]} Kd4 {[%emt 0:00:16]} 65. Ke2 {[%emt 0:00:24]} Nc4 {[%emt 0:01:31]} 66. Kf3 {[%emt 0:00:19]} Ke5 {[%emt 0:00:04]} 67. Kf2 {[%emt 0:01:23]} Kf4 {[%emt 0:00:08]} 68. Ke2 {[%emt 0:00:11]} Ke4 {[%emt 0:00:03]} 69. Kf2 {[%emt 0:00:21]} Nd2 {[%emt 0:02:01]} 70. Ke2 {[%emt 0:00:23]} Nb3 {[%emt 0:00:21]} 71. Kf2 {[%emt 0:01:46]} Nd4 {[%emt 0:00:37]} 72. Kg2 {[%emt 0:04:24]} Ke3 {[%emt 0:00:56]} 73. Kf1 {[%emt 0:01:09]} Nf3 {[%emt 0:01:34]} 74. Kg2 {[%emt 0:00:07]} Nd2 {[%emt 0:00:30]} 75. Kg3 {[%emt 0:01:03]} Nf1+ {[%emt 0:01:14]} 76. Kg2 {[%emt 0:00:55]} Ke2 {[%emt 0:00:05]} 77. Kg1 {[%emt 0:00:37]} Ne3 {[%emt 0:00:06]} 78. Kh2 {[%emt 0:00:11]} Kf3 {[%emt 0:01:12]} 79. Kh3 {[%emt 0:00:23]} Kf4 {[%emt 0:01:33]} 80. Kh4 {[%emt 0:00:46]} Ng2+ {[%emt 0:00:54]} 81. Kh3 {[%emt 0:00:09]} Kf3 {[%emt 0:00:17]} 82. Kh2 {[%emt 0:00:04]} Nf4 {[%emt 0:01:47]} 83. Kg1 {[%emt 0:00:25]} Ke2 {[%emt 0:00:08]} 84. Kh1 {[%emt 0:00:43]} Kf2 {[%emt 0:00:17]} 85. Kh2 {[%emt 0:00:05]} Ng4+ {[%emt 0:00:17]} 86. Kh1 {[%emt 0:00:06]} Ne2 {[%emt 0:00:03]} 87. h6 {[%emt 0:00:04]} Ng3# {[%emt 0:00:04]} 0-1

[Event "Reykjavik Open 2025"]
[Site "Reykjavik"]
[Date "2025.04.11"]
[Round "4.30"]
[White "Cramling Bellon, Anna"]
[Black "Mize, Dylan"]
[Result "1-0"]
[Annotator "RC"]
[ECO "E11"]
[WhiteElo "2046"]
[BlackElo "1826"]
[PlyCount "111"]
[EventDate "2025.04.09"]
[EventType "swiss"]
[EventCountry "ISL"]
[SourceTitle "playchess.com"]
[Source "ChessBase"]
[SourceQuality "1"]
[TimeControl "40/5400+30:1800+30"]

1. d4 {[%emt 0:00:07]} Nf6 {[%emt 0:00:16]} 2. c4 {[%emt 0:00:03]} e6 {[%emt 0:00:23]} 3. Nf3 {[%emt 0:00:08]} Bb4+ {[%emt 0:00:36]} 4. Bd2 {[%emt 0:00:11]} Qe7 {[%emt 0:00:21]} 5. a3 {[%emt 0:01:09]} Bxd2+ {[%emt 0:00:16]} 6. Qxd2 {[%emt 0:00:19]} a5 {[%emt 0:01:38]} 7. Nc3 {[%emt 0:04:19]} d6 {[%emt 0:00:48]} 8. e4 {[%emt 0:09:53]} e5 {[%emt 0:00:12]} 9. dxe5 {[%emt 0:08:21]} dxe5 {[%emt 0:00:14]} 10. Nd5 {[%emt 0:01:07]} Qd8 {[%emt 0:17:46]} 11. Qg5 {[%emt 0:07:19]} O-O {[%emt 0:09:03]} 12. Nxf6+ {[%emt 0:04:30]} Qxf6 {[%emt 0:00:35]} 13. Qxe5 {[%emt 0:00:28]} Qxe5 {[%emt 0:00:45]} 14. Nxe5 {[%emt 0:00:04]} Re8 {[%emt 0:00:19]} 15. O-O-O {[%emt 0:00:46]} Kf8 {[%emt 0:11:21]} 16. Nf3 {[%emt 0:07:28]} Rxe4 {[%emt 0:01:20]} 17. Ng5 {[%emt 0:00:37]} Re8 {[%emt 0:03:23]} 18. Nxh7+ {[%emt 0:01:13]} Kg8 {[%emt 0:00:23]} 19. Bd3 {[%emt 0:09:41]} Nc6 {[%emt 0:10:31]} 20. Ng5 {[%emt 0:04:04]} Ne5 {[%emt 0:06:16]} 21. Bc2 {[%emt 0:07:45]} f6 {[%emt 0:19:31]} 22. Ne4 {[%emt 0:14:18]} Nxc4 {[%emt 0:01:44]} 23. Rhe1 {[%emt 0:05:46]} Be6 {[%emt 0:02:42]} 24. Nc5 {[%emt 0:00:13]} Bf7 {[%emt 0:00:36]} 25. Rxe8+ {[%emt 0:03:31]} Rxe8 {[%emt 0:00:06]} 26. Nxb7 {[%emt 0:00:22]} Kf8 {[%emt 0:06:24]} 27. Nd8 {[%emt 0:05:34]} Bh5 {[%emt 0:01:48]} 28. f3 {[%emt 0:01:02]} Ne3 {[%emt 0:00:49]} 29. Rd2 {[%emt 0:00:36]} Nxg2 {[%emt 0:01:02]} 30. Rxg2 {[%emt 0:02:59]} Rxd8 {[%emt 0:00:06]} 31. Be4 {[%emt 0:00:03]} Be8 {[%emt 0:03:56]} 32. b3 {[%emt 0:00:58]} c5 {[%emt 0:00:26]} 33. Rc2 {[%emt 0:00:17]} Rc8 {[%emt 0:00:33]} 34. Kb2 {[%emt 0:01:46]} Ke7 {[%emt 0:00:27]} 35. Kc3 {[%emt 0:00:28]} Bc6 {[%emt 0:00:34]} 36. Bxc6 {[%emt 0:00:21]} Rxc6 {[%emt 0:00:00]} 37. Kc4 {[%emt 0:00:07]} Re6 {[%emt 0:01:18]} 38. Rc3 {[%emt 0:00:57]} Re5 {[%emt 0:00:24]} 39. Rd3 {[%emt 0:00:24]} Rh5 {[%emt 0:00:32]} 40. Rd5 {[%emt 0:00:30]} Rxh2 {[%emt 0:00:04]} 41. Kxc5 {[%emt 0:30:29]} Ke6 {[%emt 0:30:39]} 42. Rd3 {[%emt 0:00:00]} Rh5+ {[%emt 0:00:00]} 43. Kc6 {[%emt 0:00:00]} Rh8 {[%emt 0:00:00]} 44. b4 {[%emt 0:00:00]} axb4 {[%emt 0:00:00]} 45. axb4 {[%emt 0:00:00]} Rh1 {[%emt 0:00:00]} 46. Rc3 {[%emt 0:00:00]} Rb1 {[%emt 0:00:00]} 47. b5 {[%emt 0:00:00]} Ke5 {[%emt 0:00:00]} 48. Rc4 {[%emt 0:00:00]} Rb3 {[%emt 0:00:00]} 49. b6 {[%emt 0:00:00]} Rxf3 {[%emt 0:00:39]} 50. b7 {[%emt 0:00:00]} Rb3 {[%emt 0:01:07]} 51. Rc5+ {[%emt 0:00:00]} Ke6 {[%emt 0:03:34]} 52. Rb5 {[%emt 0:00:00]} Rxb5 {[%emt 0:00:19]} 53. Kxb5 {[%emt 0:00:00]} g5 {[%emt 0:00:29]} 54. b8=Q {[%emt 0:00:37]} f5 {[%emt 0:00:40]} 55. Qg3 {[%emt 0:00:00]} Kf6 {[%emt 0:00:33]} 56. Kc4 {[%emt 0:00:00]} 1-0

[Event "Reykjavik Open 2025"]
[Site "Reykjavik"]
[Date "2025.04.11"]
[Round "4.31"]
[White "Williams, Simon K"]
[Black "Lu, Shanglei"]
[Result "0-1"]
[Annotator "ChessBase"]
[ECO "D24"]
[WhiteElo "2451"]
[BlackElo "2618"]
[PlyCount "80"]
[EventDate "2025.04.09"]
[EventType "swiss"]
[EventCountry "ISL"]
[SourceTitle "playchess.com"]
[Source "ChessBase"]
[SourceQuality "1"]
[TimeControl "40/5400+30:1800+30"]

1. d4 {[%emt 0:00:10]} Nf6 {[%emt 0:00:14]} 2. Nf3 {[%emt 0:01:03]} d5 {[%emt 0:00:20]} 3. c4 {[%emt 0:00:24]} e6 {[%emt 0:00:07]} 4. Nc3 {[%emt 0:00:24]} dxc4 {[%emt 0:05:57]} 5. e4 {[%emt 0:02:17]} Bb4 {[%emt 0:02:14]} 6. Bxc4 {[%emt 0:00:51]} Nxe4 {[%emt 0:00:15]} 7. O-O {[%emt 0:00:25]} Nf6 {[%emt 0:00:06]} 8. a3 {[%emt 0:02:50]} Be7 {[%emt 0:04:14]} 9. Qe2 {[%emt 0:14:31]} O-O {[%emt 0:02:11]} 10. Rd1 {[%emt 0:00:35]} c6 {[%emt 0:12:54]} 11. Ne5 {[%emt 0:13:37]} Nd5 {[%emt 0:01:53]} 12. Rd3 {[%emt 0:04:59]} f5 {[%emt 0:14:35]} 13. Rh3 {[%emt 0:01:16]} Qe8 {[%emt 0:00:19]} 14. g4 {[%emt 0:02:32]} Nd7 {[%emt 0:10:38]} 15. gxf5 {[%emt 0:04:34]} Nxe5 {[%emt 0:02:42]} 16. dxe5 {[%emt 0:04:46]} Rxf5 {[%emt 0:00:11]} 17. Bd3 {[%emt 0:01:23]} Qg6+ {[%emt 0:00:20]} 18. Kh1 {[%emt 0:03:07]} Nxc3 {[%emt 0:08:43]} 19. bxc3 {[%emt 0:00:08]} Qf7 {[%emt 0:00:07]} 20. Bxf5 {[%emt 0:20:52]} exf5 {[%emt 0:01:24]} 21. Bf4 {[%emt 0:00:05]} Be6 {[%emt 0:00:52]} 22. Rg1 {[%emt 0:02:28]} Bxa3 {[%emt 0:07:37]} 23. Rhg3 {[%emt 0:00:24]} Bf8 {[%emt 0:01:23]} 24. h4 {[%emt 0:01:32]} Kh8 {[%emt 0:01:20]} 25. h5 {[%emt 0:03:18]} Re8 {[%emt 0:04:10]} 26. Kh2 {[%emt 0:05:43]} a5 {[%emt 0:00:43]} 27. h6 {[%emt 0:04:22]} g6 {[%emt 0:01:19]} 28. Bg5 {[%emt 0:00:11]} Be7 {[%emt 0:02:44]} 29. Qd2 {[%emt 0:00:53]} a4 {[%emt 0:02:48]} 30. Rd3 {[%emt 0:00:57]} Kg8 {[%emt 0:03:21]} 31. c4 {[%emt 0:01:28]} a3 {[%emt 0:02:48]} 32. f4 {[%emt 0:00:10]} a2 {[%emt 0:04:51]} 33. Bxe7 {[%emt 0:02:17]} Qxe7 {[%emt 0:00:04]} 34. Kh3 {[%emt 0:00:05]} Ra8 {[%emt 0:03:27]} 35. Ra1 {[%emt 0:00:09]} Bxc4 {[%emt 0:00:12]} 36. Rd7 {[%emt 0:01:04]} Ra3+ {[%emt 0:00:48]} 37. Kg2 {[%emt 0:00:00]} Qh4 {[%emt 0:00:07]} 38. Rd8+ {[%emt 0:00:11]} Kf7 {[%emt 0:00:02]} 39. Qd7+ {[%emt 0:01:12]} Qe7 {[%emt 0:00:02]} 40. Rd1 {[%emt 0:00:17]} Be6 {[%emt 0:01:33]} 0-1

[Event "Reykjavik Open 2025"]
[Site "Reykjavik"]
[Date "2025.04.11"]
[Round "4.32"]
[White "Kavutskiy, Kostya"]
[Black "Ravi Krishna G"]
[Result "1-0"]
[Annotator "RC"]
[ECO "B45"]
[WhiteElo "2351"]
[BlackElo "2100"]
[PlyCount "135"]
[EventDate "2025.04.09"]
[EventType "swiss"]
[EventCountry "ISL"]
[SourceTitle "playchess.com"]
[Source "ChessBase"]
[SourceQuality "1"]
[TimeControl "40/5400+30:1800+30"]

1. e4 {[%emt 0:01:19]} c5 {[%emt 0:00:35]} 2. Nf3 {[%emt 0:00:00]} e6 {[%emt 0:00:13]} 3. d4 {[%emt 0:00:02]} cxd4 {[%emt 0:00:05]} 4. Nxd4 {[%emt 0:00:07]} Nf6 {[%emt 0:00:03]} 5. Nc3 {[%emt 0:01:40]} Nc6 {[%emt 0:00:07]} 6. g3 {[%emt 0:06:18]} Bb4 {[%emt 0:01:51]} 7. Bg2 {[%emt 0:03:12]} d6 {[%emt 0:08:19]} 8. Nde2 {[%emt 0:09:18]} O-O {[%emt 0:05:40]} 9. O-O {[%emt 0:01:38]} e5 {[%emt 0:07:16]} 10. a3 {[%emt 0:07:29]} Bc5 {[%emt 0:05:17]} 11. Na4 {[%emt 0:02:50]} Nd4 {[%emt 0:07:54]} 12. c3 {[%emt 0:03:09]} Nxe2+ {[%emt 0:01:30]} 13. Qxe2 {[%emt 0:00:06]} Bg4 {[%emt 0:07:33]} 14. Qd3 {[%emt 0:02:18]} Qd7 {[%emt 0:02:59]} 15. Nxc5 {[%emt 0:05:29]} dxc5 {[%emt 0:01:42]} 16. Qxd7 {[%emt 0:00:08]} Nxd7 {[%emt 0:01:53]} 17. Be3 {[%emt 0:02:19]} f6 {[%emt 0:07:02]} 18. f3 {[%emt 0:04:57]} Be6 {[%emt 0:00:35]} 19. Rfd1 {[%emt 0:04:32]} Rfd8 {[%emt 0:02:33]} 20. b4 {[%emt 0:04:48]} b6 {[%emt 0:04:29]} 21. Rd6 {[%emt 0:01:10]} Kf7 {[%emt 0:02:18]} 22. Rad1 {[%emt 0:00:52]} Ke7 {[%emt 0:16:38]} 23. Bf1 {[%emt 0:17:05]} cxb4 {[%emt 0:00:00]} 24. cxb4 {[%emt 0:01:12]} Nf8 {[%emt 0:00:00]} 25. Rxd8 {[%emt 0:00:57]} Rxd8 {[%emt 0:00:23]} 26. Rxd8 {[%emt 0:00:35]} Kxd8 {[%emt 0:00:00]} 27. a4 {[%emt 0:00:18]} Kc7 {[%emt 0:02:04]} 28. a5 {[%emt 0:02:00]} Nd7 {[%emt 0:00:00]} 29. h4 {[%emt 0:00:54]} Nb8 {[%emt 0:00:00]} 30. h5 {[%emt 0:02:38]} Nc6 {[%emt 0:00:03]} 31. Bd2 {[%emt 0:00:18]} Nd4 {[%emt 0:02:32]} 32. Kf2 {[%emt 0:00:20]} Kc6 {[%emt 0:00:38]} 33. h6 {[%emt 0:01:26]} gxh6 {[%emt 0:02:56]} 34. Bxh6 {[%emt 0:01:45]} f5 {[%emt 0:05:53]} 35. Bd3 {[%emt 0:02:43]} bxa5 {[%emt 0:00:25]} 36. bxa5 {[%emt 0:00:27]} fxe4 {[%emt 0:00:36]} 37. Bxe4+ {[%emt 0:02:46]} Bd5 {[%emt 0:00:04]} 38. Ke3 {[%emt 0:00:56]} Nb3 {[%emt 0:04:59]} 39. a6 {[%emt 0:02:51]} Nc5 {[%emt 0:00:23]} 40. Bxh7 {[%emt 0:00:44]} Nxa6 {[%emt 0:00:39]} 41. Bg7 {[%emt 0:18:34]} Kd6 {[%emt 0:02:46]} 42. Bf8+ {[%emt 0:00:09]} Kd7 {[%emt 0:12:18]} 43. Bf5+ {[%emt 0:00:30]} Kc6 {[%emt 0:00:09]} 44. Bg7 {[%emt 0:00:31]} Kd6 {[%emt 0:00:00]} 45. Bf8+ Kc6 {[%emt 0:01:12]} 46. g4 Nc7 {[%emt 0:09:30]} 47. g5 Ne6 {[%emt 0:04:06]} 48. Be7 Nd4 {[%emt 0:05:08]} 49. Be4 Kd7 {[%emt 0:11:49]} 50. Bc5 {[%emt 0:10:53]} Bxe4 {[%emt 0:01:53]} 51. Kxe4 {[%emt 0:00:57]} Ne6 {[%emt 0:00:00]} 52. Be3 {[%emt 0:00:39]} Kd6 {[%emt 0:00:17]} 53. g6 {[%emt 0:00:05]} Ng7 {[%emt 0:00:00]} 54. Bh6 {[%emt 0:06:55]} Nh5 {[%emt 0:00:00]} 55. Kf5 {[%emt 0:00:43]} e4 {[%emt 0:00:00]} 56. Bf8+ {[%emt 0:01:11]} Kd7 {[%emt 0:00:10]} 57. fxe4 {[%emt 0:00:20]} Ke8 {[%emt 0:00:00]} 58. Bb4 {[%emt 0:00:26]} Ng3+ {[%emt 0:00:00]} 59. Kf4 {[%emt 0:00:48]} Nh5+ {[%emt 0:00:00]} 60. Kg5 {[%emt 0:00:28]} Ng7 {[%emt 0:00:00]} 61. e5 {[%emt 0:01:47]} a6 {[%emt 0:00:00]} 62. Kh6 {[%emt 0:01:17]} Ne6 {[%emt 0:00:00]} 63. Kh7 {[%emt 0:00:20]} Ng5+ {[%emt 0:00:00]} 64. Kh8 {[%emt 0:00:28]} a5 {[%emt 0:00:00]} 65. Ba3 {[%emt 0:00:24]} Nf7+ {[%emt 0:00:00]} 66. gxf7+ {[%emt 0:00:15]} Kxf7 {[%emt 0:00:00]} 67. Bb2 {[%emt 0:00:12]} Ke6 {[%emt 0:00:07]} 68. Kg7 {[%emt 0:00:07]} 1-0

[Event "Reykjavik Open 2025"]
[Site "Reykjavik"]
[Date "2025.04.11"]
[Round "4.33"]
[White "Larkin, Vladyslav"]
[Black "Petersen, Marcel"]
[Result "1-0"]
[Annotator "ChessBase"]
[ECO "C54"]
[WhiteElo "2449"]
[BlackElo "2185"]
[PlyCount "75"]
[EventDate "2025.04.09"]
[EventType "swiss"]
[EventCountry "ISL"]
[SourceTitle "playchess.com"]
[Source "ChessBase"]
[SourceQuality "1"]
[TimeControl "40/5400+30:1800+30"]

1. e4 {[%emt 0:00:05]} e5 {[%emt 0:00:08]} 2. Bc4 {[%emt 0:00:12]} Nc6 {[%emt 0:00:57]} 3. d3 {[%emt 0:00:57]} Bc5 {[%emt 0:00:34]} 4. Nf3 {[%emt 0:00:27]} Nf6 {[%emt 0:00:48]} 5. c3 {[%emt 0:00:26]} Bb6 {[%emt 0:01:07]} 6. O-O {[%emt 0:01:17]} O-O {[%emt 0:00:25]} 7. Re1 {[%emt 0:08:52]} Re8 {[%emt 0:02:53]} 8. b4 {[%emt 0:05:58]} d6 {[%emt 0:03:25]} 9. a4 {[%emt 0:00:23]} a6 {[%emt 0:02:41]} 10. h3 {[%emt 0:07:06]} h6 {[%emt 0:01:27]} 11. Na3 {[%emt 0:01:48]} Ne7 {[%emt 0:04:26]} 12. Qb3 {[%emt 0:47:43]} Rf8 {[%emt 0:00:55]} 13. d4 {[%emt 0:02:48]} Ng6 {[%emt 0:09:07]} 14. a5 {[%emt 0:04:35]} Ba7 {[%emt 0:00:10]} 15. b5 {[%emt 0:00:27]} Qe7 {[%emt 0:05:50]} 16. b6 {[%emt 0:00:39]} Bb8 {[%emt 0:00:33]} 17. Nc2 {[%emt 0:01:08]} c6 {[%emt 0:02:44]} 18. Ba3 {[%emt 0:01:26]} Nh5 {[%emt 0:02:58]} 19. Ne3 {[%emt 0:01:58]} Nhf4 {[%emt 0:05:31]} 20. Nf5 {[%emt 0:01:20]} Qf6 {[%emt 0:00:48]} 21. Bf1 {[%emt 0:08:25]} exd4 {[%emt 0:11:00]} 22. g3 {[%emt 0:00:08]} Bxf5 {[%emt 0:03:37]} 23. exf5 {[%emt 0:00:19]} Qxf5 {[%emt 0:00:06]} 24. gxf4 {[%emt 0:00:32]} Nxf4 {[%emt 0:01:10]} 25. cxd4 {[%emt 0:00:32]} Nxh3+ {[%emt 0:08:11]} 26. Bxh3 {[%emt 0:00:03]} Qxh3 {[%emt 0:00:07]} 27. Re4 {[%emt 0:02:07]} g5 {[%emt 0:00:45]} 28. Nd2 {[%emt 0:00:22]} Qf5 {[%emt 0:00:59]} 29. d5 {[%emt 0:00:08]} cxd5 {[%emt 0:00:27]} 30. Rd4 {[%emt 0:00:09]} Re8 {[%emt 0:02:54]} 31. Qf3 {[%emt 0:00:08]} Qg6 {[%emt 0:00:47]} 32. Qxd5 {[%emt 0:01:13]} Qh5 {[%emt 0:01:00]} 33. Nf3 {[%emt 0:00:37]} Qh3 {[%emt 0:03:24]} 34. Bb4 {[%emt 0:01:34]} g4 {[%emt 0:01:03]} 35. Nh2 {[%emt 0:00:25]} Re5 {[%emt 0:01:02]} 36. Rxg4+ {[%emt 0:00:21]} Qxg4+ {[%emt 0:00:15]} 37. Nxg4 {[%emt 0:00:04]} Rxd5 {[%emt 0:00:13]} 38. Nf6+ {[%emt 0:00:04]} 1-0

[Event "Reykjavik Open 2025"]
[Site "Reykjavik"]
[Date "2025.04.11"]
[Round "4.34"]
[White "Vedant Nayudu"]
[Black "Saine, Zachary"]
[Result "0-1"]
[Annotator "NA"]
[ECO "C50"]
[WhiteElo "1789"]
[BlackElo "2019"]
[PlyCount "78"]
[EventDate "2025.04.09"]
[EventType "swiss"]
[EventCountry "ISL"]
[SourceTitle "playchess.com"]
[Source "ChessBase"]
[SourceQuality "1"]
[TimeControl "40/5400+30:1800+30"]

1. e4 {[%emt 0:00:03]} e5 {[%emt 0:00:10]} 2. Nf3 {[%emt 0:00:03]} Nc6 {[%emt 0:00:05]} 3. Bc4 {[%emt 0:00:09]} Bc5 {[%emt 0:00:07]} 4. O-O {[%emt 0:00:04]} Nf6 {[%emt 0:00:10]} 5. d4 {[%emt 0:00:04]} Bxd4 {[%emt 0:00:20]} 6. Nxd4 {[%emt 0:00:08]} Nxd4 {[%emt 0:00:04]} 7. Bg5 {[%emt 0:00:20]} h6 {[%emt 0:08:17]} 8. Bh4 {[%emt 0:00:01]} d6 {[%emt 0:08:56]} 9. f4 {[%emt 0:00:17]} Bg4 {[%emt 0:03:12]} 10. Bxf6 {[%emt 0:01:03]} Bxd1 {[%emt 0:00:15]} 11. Bxd8 {[%emt 0:00:05]} Rxd8 {[%emt 0:18:16]} 12. c3 {[%emt 0:00:42]} Nc2 {[%emt 0:11:02]} 13. Rxd1 {[%emt 0:05:10]} Nxa1 {[%emt 0:00:28]} 14. Na3 {[%emt 0:00:34]} exf4 {[%emt 0:01:05]} 15. Rxa1 {[%emt 0:00:18]} g5 {[%emt 0:00:48]} 16. Nb5 {[%emt 0:05:12]} c6 {[%emt 0:02:19]} 17. Nd4 {[%emt 0:00:15]} Ke7 {[%emt 0:04:50]} 18. Re1 {[%emt 0:10:34]} Kf6 {[%emt 0:12:12]} 19. Bd3 {[%emt 0:12:52]} Rhe8 {[%emt 0:04:51]} 20. Kf2 {[%emt 0:09:22]} d5 {[%emt 0:00:38]} 21. Nf3 {[%emt 0:05:03]} dxe4 {[%emt 0:00:32]} 22. Bxe4 {[%emt 0:03:42]} g4 {[%emt 0:00:38]} 23. Nd4 {[%emt 0:00:35]} c5 {[%emt 0:00:46]} 24. Nb3 {[%emt 0:00:33]} b6 {[%emt 0:00:14]} 25. Re2 {[%emt 0:06:23]} Kg5 {[%emt 0:00:28]} 26. Nc1 {[%emt 0:09:18]} Rd1 {[%emt 0:01:01]} 27. Nb3 {[%emt 0:00:20]} f5 {[%emt 0:00:32]} 28. Bc2 {[%emt 0:02:30]} Rxe2+ {[%emt 0:00:35]} 29. Kxe2 {[%emt 0:00:02]} Rh1 {[%emt 0:00:11]} 30. Kf2 {[%emt 0:02:45]} Rxh2 {[%emt 0:00:17]} 31. Kg1 {[%emt 0:00:17]} Rh5 {[%emt 0:00:14]} 32. Nd2 {[%emt 0:01:17]} f3 {[%emt 0:01:18]} 33. gxf3 {[%emt 0:06:45]} g3 {[%emt 0:00:11]} 34. Nf1 {[%emt 0:01:01]} Kf4 {[%emt 0:00:12]} 35. b4 {[%emt 0:02:40]} Rg5 {[%emt 0:02:42]} 36. Bd1 {[%emt 0:05:02]} h5 {[%emt 0:00:17]} 37. Nd2 {[%emt 0:02:00]} h4 {[%emt 0:00:25]} 38. bxc5 {[%emt 0:00:11]} h3 {[%emt 0:01:48]} 39. cxb6 {[%emt 0:01:21]} h2+ {[%emt 0:00:26]} 0-1